[Event "November 21 Early 2023"]
[Site "https://www.chess.com"]
[Date "2023.11.21"]
[Round "7"]
[White "Urazayev, Arystanbek"]
[Black "Jovic, Stanoje"]
[Result "1-0"]
[Board "67"]
[TimeControl "180+1"]
[WhiteFideId "13709810"]
[BlackFideId "905020"]
[WhiteElo "2405"]
[BlackElo "2249"]
[WhiteTeam "KAZ"]
[BlackTeam "SRB"]
[WhiteClock "0:02:14"]
[BlackClock "0:00:00"]

1. e4 {[%clk 0:02:57]}  c6 {[%clk 0:02:57]} 2. Nf3 {[%clk 0:02:58]}  d5 {[%clk 0:02:56]} 3. Nc3 {[%clk 0:02:59]}  Nf6 {[%clk 0:02:56]} 4. e5 {[%clk 0:02:59]}  Ne4 {[%clk 0:02:55]} 5. Ne2 {[%clk 0:02:59]}  Qb6 {[%clk 0:02:53]} 6. d4 {[%clk 0:03:00]}  f6 {[%clk 0:02:53]} 7. Ng3 {[%clk 0:02:58]}  Bg4 {[%clk 0:02:51]} 8. h3 {[%clk 0:02:45]}  Nxg3 {[%clk 0:02:45]} 9. fxg3 {[%clk 0:02:43]}  Bh5 {[%clk 0:02:39]} 10. g4 {[%clk 0:02:43]}  Bg6 {[%clk 0:02:38]} 11. Bd3 {[%clk 0:02:43]}  c5 {[%clk 0:02:29]} 12. O-O {[%clk 0:02:41]}  Nc6 {[%clk 0:02:26]} 13. Bxg6+ {[%clk 0:02:42]}  hxg6 {[%clk 0:02:26]} 14. Qd3 {[%clk 0:02:42]}  cxd4 {[%clk 0:02:20]} 15. Qxg6+ {[%clk 0:02:42]}  Kd8 {[%clk 0:02:19]} 16. e6 {[%clk 0:02:26]}  d3+ {[%clk 0:02:06]} 17. Kh1 {[%clk 0:02:26]}  dxc2 {[%clk 0:01:59]} 18. Qxc2 {[%clk 0:02:27]}  Ne5 {[%clk 0:01:50]} 19. Nxe5 {[%clk 0:02:27]}  fxe5 {[%clk 0:01:49]} 20. Qf5 {[%clk 0:02:15]}  Qd6 {[%clk 0:01:39]} 21. Be3 {[%clk 0:02:15]}  d4 {[%clk 0:01:34]} 22. Rac1 {[%clk 0:02:14]}  Rc8 {[%clk 0:00:00]} 23. Qxf8+ {[%clk 0:02:14]} 1-0

[Event "November 21 Early 2023"]
[Site "https://www.chess.com"]
[Date "2023.11.21"]
[Round "7"]
[White "Omariev, Maksim"]
[Black "Weetik, Vjacheslav"]
[Result "0-1"]
[Board "68"]
[TimeControl "180+1"]
[WhiteFideId "4193423"]
[BlackFideId "4153472"]
[WhiteElo "2546"]
[BlackElo "2469"]
[WhiteTeam "RUS"]
[BlackTeam "RUS"]
[WhiteClock "0:00:00"]
[BlackClock "0:00:10"]

1. g4 {[%clk 0:03:00]}  d5 {[%clk 0:02:59]} 2. Bg2 {[%clk 0:03:00]}  Bxg4 {[%clk 0:02:59]} 3. c4 {[%clk 0:02:53]}  c6 {[%clk 0:02:58]} 4. Qb3 {[%clk 0:02:52]}  Nf6 {[%clk 0:02:56]} 5. Qxb7 {[%clk 0:02:51]}  Nbd7 {[%clk 0:02:56]} 6. Nc3 {[%clk 0:02:51]}  e6 {[%clk 0:02:54]} 7. Qxc6 {[%clk 0:02:47]}  Rc8 {[%clk 0:02:54]} 8. Qa6 {[%clk 0:02:48]}  Rxc4 {[%clk 0:02:49]} 9. b3 {[%clk 0:02:48]}  Rc8 {[%clk 0:02:45]} 10. Ba3 {[%clk 0:02:48]}  Bxa3 {[%clk 0:02:24]} 11. Qxa3 {[%clk 0:02:49]}  Nc5 {[%clk 0:02:20]} 12. h3 {[%clk 0:02:46]}  Bh5 {[%clk 0:02:18]} 13. Qxa7 {[%clk 0:02:45]}  d4 {[%clk 0:02:11]} 14. Na4 {[%clk 0:02:35]}  Nfd7 {[%clk 0:01:54]} 15. Nxc5 {[%clk 0:02:00]}  Rxc5 {[%clk 0:01:50]} 16. Nf3 {[%clk 0:01:50]}  d3 {[%clk 0:01:50]} 17. e3 {[%clk 0:01:46]}  O-O {[%clk 0:01:40]} 18. O-O {[%clk 0:01:34]}  Bxf3 {[%clk 0:01:35]} 19. Bxf3 {[%clk 0:01:34]}  Rg5+ {[%clk 0:01:33]} 20. Kh2 {[%clk 0:01:23]}  Ne5 {[%clk 0:01:22]} 21. Bd1 {[%clk 0:01:06]}  Qd5 {[%clk 0:01:08]} 22. Rg1 {[%clk 0:00:53]}  Nc6 {[%clk 0:00:44]} 23. Qc7 {[%clk 0:00:36]}  Rxg1 {[%clk 0:00:34]} 24. Kxg1 {[%clk 0:00:37]}  Qg5+ {[%clk 0:00:33]} 25. Qg3 {[%clk 0:00:35]}  Qf6 {[%clk 0:00:33]} 26. Rb1 {[%clk 0:00:33]}  Nb4 {[%clk 0:00:29]} 27. a3 {[%clk 0:00:32]}  Nd5 {[%clk 0:00:29]} 28. b4 {[%clk 0:00:30]}  g6 {[%clk 0:00:20]} 29. b5 {[%clk 0:00:29]}  Qd8 {[%clk 0:00:17]} 30. a4 {[%clk 0:00:28]}  Qa5 {[%clk 0:00:16]} 31. Rb2 {[%clk 0:00:27]}  Rc8 {[%clk 0:00:15]} 32. e4 {[%clk 0:00:27]}  Nb6 {[%clk 0:00:11]} 33. Qxd3 {[%clk 0:00:26]}  Rc1 {[%clk 0:00:12]} 34. Qe2 {[%clk 0:00:02]}  Qxa4 {[%clk 0:00:12]} 35. Kg2 {[%clk 0:00:01]}  Qxd1 {[%clk 0:00:10]} 36. Qxd1 {[%clk 0:00:01]}  Rxd1 {[%clk 0:00:11]} 37. Rc2 {[%clk 0:00:02]}  Rb1 {[%clk 0:00:10]} 38. Rc1 {[%clk 0:00:00]}  Rxc1 {[%clk 0:00:10]} 0-1

[Event "November 21 Early 2023"]
[Site "https://www.chess.com"]
[Date "2023.11.21"]
[Round "7"]
[White "LeoLV10"]
[Black "Volkov, Maksim"]
[Result "0-1"]
[Board "71"]
[TimeControl "180+1"]
[BlackFideId "54123070"]
[WhiteElo "2522"]
[BlackElo "2293"]
[BlackTeam "RUS"]
[WhiteClock "0:00:00"]
[BlackClock "0:00:21"]

1. e4 {[%clk 0:02:30]}  c5 {[%clk 0:02:59]} 2. Nf3 {[%clk 0:02:28]}  d6 {[%clk 0:02:59]} 3. d4 {[%clk 0:02:28]}  cxd4 {[%clk 0:02:58]} 4. Nxd4 {[%clk 0:02:29]}  Nf6 {[%clk 0:02:58]} 5. Nc3 {[%clk 0:02:30]}  a6 {[%clk 0:02:58]} 6. Bg5 {[%clk 0:02:30]}  e6 {[%clk 0:02:58]} 7. f4 {[%clk 0:02:30]}  Be7 {[%clk 0:02:59]} 8. Qf3 {[%clk 0:02:27]}  Qc7 {[%clk 0:02:59]} 9. O-O-O {[%clk 0:02:26]}  Nbd7 {[%clk 0:02:57]} 10. g4 {[%clk 0:02:23]}  h6 {[%clk 0:02:56]} 11. Bxf6 {[%clk 0:02:21]}  Bxf6 {[%clk 0:02:57]} 12. Be2 {[%clk 0:02:21]}  Nb6 {[%clk 0:02:44]} 13. h4 {[%clk 0:02:19]}  Bd7 {[%clk 0:02:43]} 14. g5 {[%clk 0:02:18]}  Bxd4 {[%clk 0:02:43]} 15. Rxd4 {[%clk 0:02:16]}  O-O-O {[%clk 0:02:38]} 16. Rhd1 {[%clk 0:02:14]}  Bc6 {[%clk 0:02:37]} 17. Qg4 {[%clk 0:02:04]}  Kb8 {[%clk 0:02:34]} 18. Kb1 {[%clk 0:02:02]}  hxg5 {[%clk 0:02:31]} 19. hxg5 {[%clk 0:02:00]}  d5 {[%clk 0:02:31]} 20. e5 {[%clk 0:01:55]}  g6 {[%clk 0:02:31]} 21. Qg1 {[%clk 0:01:51]}  Nc8 {[%clk 0:02:30]} 22. Rb4 {[%clk 0:01:48]}  Qa5 {[%clk 0:02:22]} 23. a3 {[%clk 0:01:44]}  Ka8 {[%clk 0:02:18]} 24. Na2 {[%clk 0:01:37]}  Ne7 {[%clk 0:02:15]} 25. Nc1 {[%clk 0:01:36]}  Ba4 {[%clk 0:02:10]} 26. Rdd4 {[%clk 0:01:30]}  Bd7 {[%clk 0:02:05]} 27. Nb3 {[%clk 0:01:29]}  Qc7 {[%clk 0:02:06]} 28. Rd1 {[%clk 0:01:20]}  Rc8 {[%clk 0:02:06]} 29. Bd3 {[%clk 0:01:17]}  Rh3 {[%clk 0:02:03]} 30. Qf1 {[%clk 0:01:16]}  Rh2 {[%clk 0:02:00]} 31. Nd4 {[%clk 0:01:13]}  Qc5 {[%clk 0:01:23]} 32. Nb3 {[%clk 0:01:01]}  Qc7 {[%clk 0:01:18]} 33. Rc1 {[%clk 0:00:56]}  Nc6 {[%clk 0:01:14]} 34. Ra4 {[%clk 0:00:56]}  Nxe5 {[%clk 0:01:05]} 35. Ra5 {[%clk 0:00:27]}  Nc6 {[%clk 0:01:00]} 36. Rc5 {[%clk 0:00:25]}  Qb6 {[%clk 0:00:55]} 37. Qg1 {[%clk 0:00:19]}  Rh3 {[%clk 0:00:52]} 38. Qf1 {[%clk 0:00:18]}  Rh4 {[%clk 0:00:48]} 39. Qf2 {[%clk 0:00:18]}  Rh3 {[%clk 0:00:48]} 40. Qf1 {[%clk 0:00:18]}  Rhh8 {[%clk 0:00:46]} 41. Qe2 {[%clk 0:00:09]}  Ka7 {[%clk 0:00:43]} 42. Qd2 {[%clk 0:00:07]}  Rc7 {[%clk 0:00:37]} 43. Rc3 {[%clk 0:00:05]}  Rhc8 {[%clk 0:00:37]} 44. Na1 {[%clk 0:00:04]}  Na5 {[%clk 0:00:34]} 45. Rxc7 {[%clk 0:00:04]}  Rxc7 {[%clk 0:00:35]} 46. Ka2 {[%clk 0:00:03]}  Bb5 {[%clk 0:00:34]} 47. Bxb5 {[%clk 0:00:02]}  Qxb5 {[%clk 0:00:35]} 48. Qd4+ {[%clk 0:00:01]}  Qb6 {[%clk 0:00:33]} 49. Qe5 {[%clk 0:00:01]}  Nc4 {[%clk 0:00:33]} 50. Qc3 {[%clk 0:00:02]}  Rc5 {[%clk 0:00:28]} 51. Nb3 {[%clk 0:00:02]}  Rb5 {[%clk 0:00:25]} 52. Qf6 {[%clk 0:00:00]}  a5 {[%clk 0:00:21]} 0-1

[Event "November 21 Early 2023"]
[Site "https://www.chess.com"]
[Date "2023.11.21"]
[Round "7"]
[White "MKlose11"]
[Black "Grossboss19"]
[Result "0-1"]
[Board "72"]
[TimeControl "180+1"]
[WhiteElo "2659"]
[BlackElo "2514"]
[WhiteClock "0:00:32"]
[BlackClock "0:00:21"]

1. e4 {[%clk 0:03:00]}  c5 {[%clk 0:02:53]} 2. Nc3 {[%clk 0:03:00]}  Nc6 {[%clk 0:02:53]} 3. g3 {[%clk 0:03:00]}  e6 {[%clk 0:02:48]} 4. Bg2 {[%clk 0:03:00]}  Nf6 {[%clk 0:02:49]} 5. d3 {[%clk 0:03:00]}  Be7 {[%clk 0:02:49]} 6. Nge2 {[%clk 0:02:58]}  O-O {[%clk 0:02:49]} 7. O-O {[%clk 0:02:59]}  d5 {[%clk 0:02:49]} 8. exd5 {[%clk 0:02:59]}  Nxd5 {[%clk 0:02:46]} 9. Nxd5 {[%clk 0:02:59]}  exd5 {[%clk 0:02:46]} 10. d4 {[%clk 0:02:59]}  cxd4 {[%clk 0:02:44]} 11. Nxd4 {[%clk 0:02:59]}  Bf6 {[%clk 0:02:45]} 12. Be3 {[%clk 0:02:57]}  Re8 {[%clk 0:02:42]} 13. c3 {[%clk 0:02:55]}  Ne5 {[%clk 0:02:33]} 14. b3 {[%clk 0:02:18]}  a6 {[%clk 0:02:16]} 15. h3 {[%clk 0:02:13]}  Qc7 {[%clk 0:02:03]} 16. Qd2 {[%clk 0:02:12]}  Bd7 {[%clk 0:01:59]} 17. Rac1 {[%clk 0:02:12]}  Rad8 {[%clk 0:01:59]} 18. Rfd1 {[%clk 0:02:10]}  Nc6 {[%clk 0:01:52]} 19. Bg5 {[%clk 0:01:46]}  Nxd4 {[%clk 0:01:41]} 20. Bxf6 {[%clk 0:01:22]}  Ne2+ {[%clk 0:01:35]} 21. Kh2 {[%clk 0:01:22]}  gxf6 {[%clk 0:01:27]} 22. Rc2 {[%clk 0:01:20]}  Bf5 {[%clk 0:01:21]} 23. Rb2 {[%clk 0:01:15]}  Qxc3 {[%clk 0:01:17]} 24. g4 {[%clk 0:01:13]}  Bg6 {[%clk 0:01:11]} 25. Qxc3 {[%clk 0:01:04]}  Nxc3 {[%clk 0:01:11]} 26. Rd4 {[%clk 0:01:05]}  Re2 {[%clk 0:00:52]} 27. Rxe2 {[%clk 0:01:04]}  Nxe2 {[%clk 0:00:53]} 28. Rxd5 {[%clk 0:01:05]}  Rxd5 {[%clk 0:00:53]} 29. Bxd5 {[%clk 0:01:06]}  b6 {[%clk 0:00:53]} 30. a3 {[%clk 0:00:59]}  a5 {[%clk 0:00:51]} 31. Bc4 {[%clk 0:00:54]}  Nd4 {[%clk 0:00:51]} 32. f4 {[%clk 0:00:54]}  Bc2 {[%clk 0:00:48]} 33. b4 {[%clk 0:00:53]}  axb4 {[%clk 0:00:48]} 34. axb4 {[%clk 0:00:54]}  Nc6 {[%clk 0:00:47]} 35. b5 {[%clk 0:00:52]}  Nd4 {[%clk 0:00:47]} 36. Kg3 {[%clk 0:00:50]}  Ba4 {[%clk 0:00:46]} 37. g5 {[%clk 0:00:50]}  Bxb5 {[%clk 0:00:42]} 38. Ba2 {[%clk 0:00:50]}  Kg7 {[%clk 0:00:40]} 39. h4 {[%clk 0:00:47]}  Nf5+ {[%clk 0:00:37]} 40. Kg4 {[%clk 0:00:47]}  Bd7 {[%clk 0:00:36]} 41. h5 {[%clk 0:00:46]}  h6 {[%clk 0:00:34]} 42. gxh6+ {[%clk 0:00:39]}  Kxh6 {[%clk 0:00:34]} 43. Kf3 {[%clk 0:00:34]}  Bc6+ {[%clk 0:00:28]} 44. Kg4 {[%clk 0:00:34]}  Ne3+ {[%clk 0:00:28]} 45. Kh4 {[%clk 0:00:33]}  Bd5 {[%clk 0:00:27]} 46. Bb1 {[%clk 0:00:32]}  b5 {[%clk 0:00:25]} 47. Kg3 {[%clk 0:00:33]}  b4 {[%clk 0:00:24]} 48. Kf2 {[%clk 0:00:34]}  Nc4 {[%clk 0:00:20]} 49. Ba2 {[%clk 0:00:33]}  Nb6 {[%clk 0:00:20]} 50. Bb1 {[%clk 0:00:32]}  Kxh5 {[%clk 0:00:19]} 51. Ke3 {[%clk 0:00:33]}  Be6 {[%clk 0:00:18]} 52. Kd4 {[%clk 0:00:33]}  Kg4 {[%clk 0:00:18]} 53. Kc5 {[%clk 0:00:30]}  Nd7+ {[%clk 0:00:18]} 54. Kxb4 {[%clk 0:00:30]}  Kxf4 {[%clk 0:00:18]} 55. Kc3 {[%clk 0:00:31]}  Ke5 {[%clk 0:00:19]} 56. Kd2 {[%clk 0:00:31]}  f5 {[%clk 0:00:19]} 57. Ke3 {[%clk 0:00:32]}  f4+ {[%clk 0:00:20]} 58. Kf2 {[%clk 0:00:33]}  Nf6 {[%clk 0:00:20]} 59. Kf3 {[%clk 0:00:32]}  Bf5 {[%clk 0:00:21]} 60. Kf2 {[%clk 0:00:32]}  Bxb1 {[%clk 0:00:21]} 0-1

[Event "November 21 Early 2023"]
[Site "https://www.chess.com"]
[Date "2023.11.21"]
[Round "7"]
[White "Taboas Rodriguez, Daniel"]
[Black "Kuznetsova, Olga"]
[Result "1-0"]
[Board "73"]
[TimeControl "180+1"]
[WhiteFideId "2208466"]
[BlackFideId "4191323"]
[WhiteElo "2365"]
[BlackElo "2134"]
[WhiteTeam "ESP"]
[BlackTeam "RUS"]
[WhiteClock "0:01:46"]
[BlackClock "0:00:17"]

1. d4 {[%clk 0:02:54]}  Nf6 {[%clk 0:02:59]} 2. Nf3 {[%clk 0:02:55]}  e6 {[%clk 0:03:00]} 3. c4 {[%clk 0:02:55]}  d5 {[%clk 0:03:00]} 4. Nc3 {[%clk 0:02:55]}  Be7 {[%clk 0:03:01]} 5. Bg5 {[%clk 0:02:55]}  Ne4 {[%clk 0:03:01]} 6. Bxe7 {[%clk 0:02:54]}  Qxe7 {[%clk 0:03:02]} 7. Rc1 {[%clk 0:02:54]}  c6 {[%clk 0:03:02]} 8. e3 {[%clk 0:02:54]}  O-O {[%clk 0:03:01]} 9. Bd3 {[%clk 0:02:54]}  f5 {[%clk 0:03:01]} 10. O-O {[%clk 0:02:53]}  Bd7 {[%clk 0:03:01]} 11. Ne5 {[%clk 0:02:53]}  Be8 {[%clk 0:03:02]} 12. f4 {[%clk 0:02:52]}  Nd7 {[%clk 0:03:00]} 13. Bxe4 {[%clk 0:02:52]}  fxe4 {[%clk 0:03:00]} 14. Qg4 {[%clk 0:02:47]}  Nxe5 {[%clk 0:02:51]} 15. fxe5 {[%clk 0:02:48]}  Bg6 {[%clk 0:02:51]} 16. c5 {[%clk 0:02:45]}  Rf5 {[%clk 0:02:47]} 17. Rxf5 {[%clk 0:02:40]}  exf5 {[%clk 0:02:38]} 18. Qf4 {[%clk 0:02:39]}  Rf8 {[%clk 0:02:38]} 19. Rf1 {[%clk 0:02:38]}  Be8 {[%clk 0:02:37]} 20. h4 {[%clk 0:02:36]}  h6 {[%clk 0:02:35]} 21. b4 {[%clk 0:02:22]}  g5 {[%clk 0:02:34]} 22. Qg3 {[%clk 0:02:22]}  Kh7 {[%clk 0:02:24]} 23. hxg5 {[%clk 0:02:19]}  hxg5 {[%clk 0:02:24]} 24. Kf2 {[%clk 0:02:19]}  Qg7 {[%clk 0:02:04]} 25. Rh1+ {[%clk 0:02:16]}  Kg8 {[%clk 0:02:04]} 26. Ke2 {[%clk 0:02:06]}  f4 {[%clk 0:02:02]} 27. Qg4 {[%clk 0:02:01]}  f3+ {[%clk 0:01:26]} 28. Kf2 {[%clk 0:01:57]}  Bd7 {[%clk 0:01:17]} 29. e6 {[%clk 0:01:56]}  Bc8 {[%clk 0:01:17]} 30. Rh5 {[%clk 0:01:53]}  Bxe6 {[%clk 0:00:26]} 31. Qxe6+ {[%clk 0:01:50]}  Qf7 {[%clk 0:00:20]} 32. Rxg5+ {[%clk 0:01:48]}  Kh7 {[%clk 0:00:17]} 33. Qh3+ {[%clk 0:01:46]} 1-0

[Event "November 21 Early 2023"]
[Site "https://www.chess.com"]
[Date "2023.11.21"]
[Round "7"]
[White "Sreyas Payyappat"]
[Black "Arslanov, Shamil"]
[Result "0-1"]
[Board "74"]
[TimeControl "180+1"]
[WhiteFideId "46674969"]
[BlackFideId "4192826"]
[WhiteElo "2043"]
[BlackElo "2326"]
[WhiteTeam "IND"]
[BlackTeam "RUS"]
[WhiteClock "0:00:06"]
[BlackClock "0:00:08"]

1. e4 {[%clk 0:03:00]}  d6 {[%clk 0:03:00]} 2. d4 {[%clk 0:03:00]}  e5 {[%clk 0:03:00]} 3. dxe5 {[%clk 0:02:59]}  Nc6 {[%clk 0:03:01]} 4. exd6 {[%clk 0:02:57]}  Bxd6 {[%clk 0:03:02]} 5. Nc3 {[%clk 0:02:57]}  Qe7 {[%clk 0:02:59]} 6. Nf3 {[%clk 0:02:55]}  Bg4 {[%clk 0:02:59]} 7. Bb5 {[%clk 0:02:53]}  Nf6 {[%clk 0:02:55]} 8. O-O {[%clk 0:02:51]}  O-O-O {[%clk 0:02:53]} 9. Qe2 {[%clk 0:02:45]}  Nd4 {[%clk 0:02:45]} 10. Qe3 {[%clk 0:02:44]}  Bxf3 {[%clk 0:02:36]} 11. gxf3 {[%clk 0:02:40]}  Bc5 {[%clk 0:02:15]} 12. Na4 {[%clk 0:02:18]}  Bd6 {[%clk 0:01:34]} 13. Nc3 {[%clk 0:02:08]}  g5 {[%clk 0:01:31]} 14. Kh1 {[%clk 0:02:04]}  Qe5 {[%clk 0:01:27]} 15. f4 {[%clk 0:01:56]}  gxf4 {[%clk 0:01:27]} 16. Qh3+ {[%clk 0:01:55]}  Kb8 {[%clk 0:01:27]} 17. Bd3 {[%clk 0:01:47]}  f3 {[%clk 0:01:09]} 18. Rg1 {[%clk 0:01:41]}  Rhg8 {[%clk 0:01:06]} 19. Be3 {[%clk 0:01:39]}  h5 {[%clk 0:00:54]} 20. Bxd4 {[%clk 0:00:39]}  Qxd4 {[%clk 0:00:54]} 21. Qxf3 {[%clk 0:00:37]}  Qe5 {[%clk 0:00:34]} 22. Qh3 {[%clk 0:00:19]}  Ng4 {[%clk 0:00:30]} 23. Rg2 {[%clk 0:00:18]}  c6 {[%clk 0:00:18]} 24. Rag1 {[%clk 0:00:17]}  Qd4 {[%clk 0:00:17]} 25. Nd1 {[%clk 0:00:15]}  Bc5 {[%clk 0:00:14]} 26. f3 {[%clk 0:00:11]}  Nf6 {[%clk 0:00:09]} 27. Rxg8 {[%clk 0:00:09]}  Nxg8 {[%clk 0:00:08]} 28. Rxg8 {[%clk 0:00:06]}  Rxg8 {[%clk 0:00:08]} 0-1

[Event "November 21 Early 2023"]
[Site "https://www.chess.com"]
[Date "2023.11.21"]
[Round "7"]
[White "Goryachkina, Aleksandra"]
[Black "Shishkov, Andrei"]
[Result "1-0"]
[Board "75"]
[TimeControl "180+1"]
[WhiteFideId "4147103"]
[BlackFideId "4500563"]
[WhiteElo "2475"]
[BlackElo "2241"]
[WhiteTeam "FID"]
[BlackTeam "EST"]
[WhiteClock "0:00:04"]
[BlackClock "0:00:04"]

1. e4 {[%clk 0:02:59]}  d5 {[%clk 0:03:00]} 2. exd5 {[%clk 0:02:58]}  Nf6 {[%clk 0:03:01]} 3. c4 {[%clk 0:02:57]}  e6 {[%clk 0:03:00]} 4. dxe6 {[%clk 0:02:51]}  Bxe6 {[%clk 0:03:01]} 5. d4 {[%clk 0:02:48]}  Bb4+ {[%clk 0:03:01]} 6. Nc3 {[%clk 0:02:43]}  Ne4 {[%clk 0:03:00]} 7. Bd2 {[%clk 0:02:21]}  Qxd4 {[%clk 0:02:56]} 8. Nxe4 {[%clk 0:02:11]}  Qxe4+ {[%clk 0:02:55]} 9. Ne2 {[%clk 0:02:06]}  Nc6 {[%clk 0:02:12]} 10. Bxb4 {[%clk 0:01:19]}  Nxb4 {[%clk 0:02:13]} 11. Qa4+ {[%clk 0:01:19]}  Nc6 {[%clk 0:02:14]} 12. O-O-O {[%clk 0:01:05]}  Bf5 {[%clk 0:02:06]} 13. Nc3 {[%clk 0:00:32]}  Qf4+ {[%clk 0:02:06]} 14. Rd2 {[%clk 0:00:32]}  Rd8 {[%clk 0:01:53]} 15. Qd1 {[%clk 0:00:31]}  O-O {[%clk 0:01:42]} 16. g3 {[%clk 0:00:31]}  Qh6 {[%clk 0:01:25]} 17. f4 {[%clk 0:00:31]}  Rxd2 {[%clk 0:01:19]} 18. Qxd2 {[%clk 0:00:31]}  Rd8 {[%clk 0:01:20]} 19. Qe3 {[%clk 0:00:28]}  Nb4 {[%clk 0:01:12]} 20. Be2 {[%clk 0:00:20]}  Qc6 {[%clk 0:01:02]} 21. Rd1 {[%clk 0:00:18]}  Re8 {[%clk 0:00:58]} 22. Qd2 {[%clk 0:00:12]}  b5 {[%clk 0:00:49]} 23. a3 {[%clk 0:00:12]}  a5 {[%clk 0:00:17]} 24. axb4 {[%clk 0:00:05]}  axb4 {[%clk 0:00:17]} 25. cxb5 {[%clk 0:00:06]}  Qc5 {[%clk 0:00:16]} 26. Qd4 {[%clk 0:00:03]}  Qxd4 {[%clk 0:00:14]} 27. Rxd4 {[%clk 0:00:04]}  bxc3 {[%clk 0:00:15]} 28. Bd1 {[%clk 0:00:03]}  cxb2+ {[%clk 0:00:15]} 29. Kxb2 {[%clk 0:00:03]}  Rb8 {[%clk 0:00:15]} 30. Be2 {[%clk 0:00:03]}  h6 {[%clk 0:00:14]} 31. Kc3 {[%clk 0:00:04]}  Be6 {[%clk 0:00:14]} 32. Bd3 {[%clk 0:00:04]}  Ra8 {[%clk 0:00:15]} 33. f5 {[%clk 0:00:04]}  Ba2 {[%clk 0:00:14]} 34. Kb4 {[%clk 0:00:04]}  Kf8 {[%clk 0:00:12]} 35. Rd7 {[%clk 0:00:05]}  Rc8 {[%clk 0:00:09]} 36. Be4 {[%clk 0:00:05]}  Re8 {[%clk 0:00:07]} 37. Bc6 {[%clk 0:00:05]}  Re1 {[%clk 0:00:07]} 38. Rd8+ {[%clk 0:00:05]}  Ke7 {[%clk 0:00:04]} 39. Re8+ {[%clk 0:00:04]} 1-0

[Event "November 21 Early 2023"]
[Site "https://www.chess.com"]
[Date "2023.11.21"]
[Round "7"]
[White "Pastar, Slaven"]
[Black "Srebrnic, Marko"]
[Result "1-0"]
[Board "77"]
[TimeControl "180+1"]
[WhiteFideId "14402718"]
[BlackFideId "14603616"]
[WhiteElo "2230"]
[BlackElo "2322"]
[WhiteTeam "BIH"]
[BlackTeam "SLO"]
[WhiteClock "0:00:06"]
[BlackClock "0:00:07"]

1. b3 {[%clk 0:03:00]}  c5 {[%clk 0:02:53]} 2. Bb2 {[%clk 0:03:01]}  Nc6 {[%clk 0:02:54]} 3. e3 {[%clk 0:03:01]}  a6 {[%clk 0:02:53]} 4. Nf3 {[%clk 0:03:01]}  Nf6 {[%clk 0:02:44]} 5. d4 {[%clk 0:03:01]}  cxd4 {[%clk 0:02:43]} 6. Nxd4 {[%clk 0:03:01]}  e6 {[%clk 0:02:41]} 7. Be2 {[%clk 0:03:01]}  Be7 {[%clk 0:02:40]} 8. c4 {[%clk 0:03:00]}  O-O {[%clk 0:02:40]} 9. O-O {[%clk 0:03:00]}  Qc7 {[%clk 0:02:38]} 10. Nc3 {[%clk 0:02:59]}  b6 {[%clk 0:02:36]} 11. Nxc6 {[%clk 0:02:35]}  dxc6 {[%clk 0:02:33]} 12. Bf3 {[%clk 0:02:35]}  Bb7 {[%clk 0:02:32]} 13. Ne4 {[%clk 0:02:35]}  Nxe4 {[%clk 0:02:22]} 14. Bxe4 {[%clk 0:02:36]}  c5 {[%clk 0:02:12]} 15. Qg4 {[%clk 0:02:23]}  g6 {[%clk 0:02:10]} 16. Bxb7 {[%clk 0:02:14]}  Qxb7 {[%clk 0:02:10]} 17. h4 {[%clk 0:02:15]}  Qc7 {[%clk 0:01:28]} 18. h5 {[%clk 0:02:10]}  f5 {[%clk 0:01:23]} 19. Qf3 {[%clk 0:01:57]}  g5 {[%clk 0:01:18]} 20. Rad1 {[%clk 0:01:51]}  Rad8 {[%clk 0:01:13]} 21. Rxd8 {[%clk 0:01:49]}  Rxd8 {[%clk 0:01:13]} 22. Rd1 {[%clk 0:01:49]}  g4 {[%clk 0:01:12]} 23. Qe2 {[%clk 0:01:49]}  Rxd1+ {[%clk 0:01:07]} 24. Qxd1 {[%clk 0:01:48]}  Qd8 {[%clk 0:01:08]} 25. Qc2 {[%clk 0:01:45]}  Bf6 {[%clk 0:01:03]} 26. g3 {[%clk 0:01:37]}  Kf7 {[%clk 0:00:56]} 27. Bxf6 {[%clk 0:01:15]}  Kxf6 {[%clk 0:00:57]} 28. e4 {[%clk 0:01:15]}  Qd4 {[%clk 0:00:49]} 29. exf5 {[%clk 0:01:14]}  exf5 {[%clk 0:00:50]} 30. Qe2 {[%clk 0:01:13]}  Qa1+ {[%clk 0:00:42]} 31. Kg2 {[%clk 0:01:10]}  Qe5 {[%clk 0:00:41]} 32. Qd2 {[%clk 0:01:05]}  Qe4+ {[%clk 0:00:40]} 33. Kg1 {[%clk 0:01:01]}  f4 {[%clk 0:00:17]} 34. gxf4 {[%clk 0:00:38]}  Kf5 {[%clk 0:00:17]} 35. Qd7+ {[%clk 0:00:24]}  Kxf4 {[%clk 0:00:17]} 36. Qc7+ {[%clk 0:00:19]}  Kg5 {[%clk 0:00:14]} 37. Qxb6 {[%clk 0:00:13]}  Qe1+ {[%clk 0:00:14]} 38. Kg2 {[%clk 0:00:12]}  Qe4+ {[%clk 0:00:14]} 39. Kg1 {[%clk 0:00:12]}  Qe1+ {[%clk 0:00:11]} 40. Kg2 {[%clk 0:00:11]}  Qe5 {[%clk 0:00:11]} 41. h6 {[%clk 0:00:06]}  Qe4+ {[%clk 0:00:11]} 42. Kg1 {[%clk 0:00:04]}  Qe1+ {[%clk 0:00:11]} 43. Kg2 {[%clk 0:00:05]}  Qe5 {[%clk 0:00:12]} 44. Qd8+ {[%clk 0:00:03]}  Kxh6 {[%clk 0:00:11]} 45. Qh4+ {[%clk 0:00:04]}  Qh5 {[%clk 0:00:06]} 46. Qxh5+ {[%clk 0:00:04]}  Kxh5 {[%clk 0:00:07]} 47. b4 {[%clk 0:00:03]}  cxb4 {[%clk 0:00:06]} 48. c5 {[%clk 0:00:03]}  a5 {[%clk 0:00:06]} 49. c6 {[%clk 0:00:04]}  a4 {[%clk 0:00:07]} 50. c7 {[%clk 0:00:05]}  b3 {[%clk 0:00:08]} 51. axb3 {[%clk 0:00:05]}  axb3 {[%clk 0:00:07]} 52. c8=Q {[%clk 0:00:06]} 1-0